fUST/lending_fUST_20250626
["ID","MTS","AMOUNT","RATE_DAILY","PERIOD"]
[367827408,1750937455676,-500.0,0.0001959,2]
[367827409,1750937455686,-151.0,0.0001959,2]
[367827410,1750937455696,-500.0,0.0001959,2]
[367827411,1750937455706,-500.0,0.0001959,2]
[367827412,1750937455716,-151.0,0.0001959,2]
[367827413,1750937455725,-500.0,0.0001959,2]
[367827414,1750937455736,-500.0,0.0001959,2]
[367827415,1750937455746,-388.0,0.0001959,2]
[367827416,1750937455756,-1880.25511664,0.0001959,2]
[367827417,1750937455765,-500.0,0.0001959,2]
[367827418,1750937455775,-500.0,0.0001959,2]
[367827419,1750937455786,-500.0,0.0001959,2]
[367827420,1750937455797,-151.0,0.0001959,2]
[367827421,1750937455807,-500.0,0.0001959,2]
[367827422,1750937455816,-500.0,0.0001959,2]
[367827423,1750937455825,-151.0,0.0001959,2]
[367827424,1750937455835,-151.0,0.0001959,2]
[367827425,1750937455846,-500.0,0.0001959,2]
[367827426,1750937455857,-500.0,0.0001959,2]
[367827427,1750937455866,-151.0,0.0001959,2]
[367827428,1750937455877,-500.0,0.0001959,2]
[367827429,1750937455889,-500.0,0.0001959,2]
[367827430,1750937455899,-151.0,0.0001959,2]
[367827431,1750937455908,-500.0,0.0001959,2]
[367827432,1750937455918,-500.0,0.0001959,2]
[367827433,1750937455929,-244.50989766,0.0001959,2]
[367827434,1750937455940,-151.0,0.0001959,2]
[367827435,1750937455951,-500.0,0.0001959,2]
[367827436,1750937455961,-500.0,0.0001959,2]
[367827437,1750937455973,-151.0,0.0001959,2]
[367827438,1750937455983,-500.0,0.0001959,2]
[367827439,1750937455997,-500.0,0.0001959,2]
[367827440,1750937456007,-151.0,0.0001959,2]
[367827441,1750937456017,-500.0,0.0001959,2]
[367827442,1750937456026,-151.0,0.0001959,2]
[367827443,1750937456036,-500.0,0.0001959,2]
[367827444,1750937456046,-151.0,0.0001959,2]
[367827445,1750937456055,-500.0,0.0001959,2]
[367827446,1750937456065,-151.0,0.0001959,2]
[367827447,1750937456075,-500.0,0.0001959,2]
[367827448,1750937456087,-151.0,0.0001959,2]
[367827449,1750937456236,-500.0,0.0001959,2]
[367827450,1750937456246,-151.0,0.0001959,2]
[367827451,1750937456255,-500.0,0.0001959,2]
[367827452,1750937456264,-151.0,0.0001959,2]
[367827453,1750937456274,-500.0,0.0001959,2]
[367827454,1750937456283,-500.0,0.0001959,2]
[367827455,1750937456292,-151.0,0.0001959,2]
[367827456,1750937456301,-151.0,0.0001959,2]
[367827457,1750937456310,-500.0,0.0001959,2]
[367827458,1750937456319,-500.0,0.0001959,2]
[367827459,1750937456330,-151.0,0.0001959,2]
[367827460,1750937456339,-151.0,0.0001959,2]
[367827461,1750937456347,-500.0,0.0001959,2]
[367827462,1750937456357,-500.0,0.0001959,2]
[367827463,1750937456366,-151.0,0.0001959,2]
[367827464,1750937456375,-151.0,0.0001959,2]
[367827465,1750937456385,-500.0,0.0001959,2]
[367827466,1750937456394,-500.0,0.0001959,2]
[367827467,1750937456403,-151.0,0.0001959,2]
[367827468,1750937456412,-151.0,0.0001959,2]
[367827469,1750937456422,-500.0,0.0001959,2]
[367827470,1750937456431,-151.0,0.0001959,2]
[367827471,1750937456441,-151.0,0.0001959,2]
[367827472,1750937456450,-151.0,0.0001959,2]
[367827473,1750937456459,-169.74990888,0.0001959,2]
[367827474,1750937456469,-500.0,0.0001959,2]
[367827475,1750937456479,-219.65880211,0.0001959,2]
[367827476,1750937456488,-500.0,0.0001959,2]
[367827477,1750937456497,-500.0,0.0001959,2]
[367827478,1750937456507,-500.0,0.0001959,2]
[367827479,1750937456516,-500.0,0.0001959,2]
[367827480,1750937456526,-500.0,0.0001959,2]
[367827481,1750937456536,-154.30026337,0.0001959,2]
[367827482,1750937456546,-25000.0,0.0001959,2]
[367827483,1750937456556,-500.0,0.0001959,2]
[367827484,1750937456566,-500.0,0.0001959,2]
[367827485,1750937456575,-23656.00863629,0.0001959,2]
[367827486,1750937456584,-500.0,0.0001959,2]
[367827487,1750937456594,-500.0,0.0001959,2]
[367827488,1750937456604,-193.91835657,0.0001959,2]
[367827489,1750937456614,-587.0,0.00019631,2]
[367827490,1750937456623,-402.356,0.00019645,2]
[367827491,1750937456633,-2000.0,0.00019665,2]
[367827492,1750937456643,-2113.77210429,0.00019665,2]
[367827493,1750937456652,-417.243172,0.000197,2]
[367827494,1750937456662,-460.0,0.00019726,2]
[367827495,1750937456671,-460.0,0.00019726,2]
[367827496,1750937456683,-460.0,0.00019726,2]
[367827497,1750937456693,-460.0,0.00019726,2]
[367827498,1750937456703,-460.0,0.00019726,2]
[367827499,1750937456712,-475.68,0.00019726,2]
[367827500,1750937456722,-799.04,0.00019726,2]
[367827501,1750937456732,-460.0,0.00019726,2]
[367827502,1750937456741,-460.0,0.00019726,2]
[367827503,1750937456751,-506.24604461,0.00019726,2]
[367827504,1750937456761,-460.0,0.00019726,2]
[367827505,1750937456771,-460.5,0.00019726,2]
[367827506,1750937456780,-514.6,0.00019726,2]
[367827507,1750937456790,-460.0,0.00019726,2]
[367827508,1750937456799,-460.0,0.00019726,2]
[367827509,1750937456808,-460.0,0.00019726,2]
[367827510,1750937456818,-460.0,0.00019726,2]
[367827511,1750937456827,-460.0,0.00019726,2]
[367827512,1750937456837,-1825.69,0.00019726,2]
[367827513,1750937456846,-634.71,0.00019726,2]
[367827514,1750937456856,-467.18,0.00019726,2]
[367827515,1750937456865,-460.0,0.00019726,2]
[367827516,1750937456875,-460.0,0.00019726,2]
[367827517,1750937456885,-560.37,0.00019726,2]
[367827518,1750937456895,-460.0,0.00019726,2]
[367827519,1750937456904,-532.05,0.00019726,2]
[367827520,1750937456913,-853.49,0.00019726,2]
[367827521,1750937456924,-749.37,0.00019726,2]
[367827522,1750937456933,-750.66,0.00019726,2]
[367827523,1750937456942,-460.0,0.00019726,2]
[367827524,1750937456951,-493.63,0.00019726,2]
[367827525,1750937456961,-2230.64,0.00019726,2]
[367827526,1750937456970,-1483.5,0.00019726,2]
[367827527,1750937456980,-631.3,0.00019726,2]
[367827528,1750937456989,-555.27,0.00019726,2]
[367827529,1750937457006,-603.69,0.00019726,2]
[367827530,1750937457015,-1037.78,0.00019726,2]
[367827531,1750937457025,-480.66,0.00019726,2]
[367827532,1750937457034,-460.0,0.00019726,2]
[367827533,1750937457045,-1376.23,0.00019726,2]
[367827534,1750937457054,-460.0,0.00019726,2]
[367827535,1750937457064,-1547.65,0.00019726,2]
[367827536,1750937457076,-1342.13,0.00019726,2]
[367827537,1750937457085,-460.0,0.00019726,2]
[367827538,1750937457095,-460.0,0.00019726,2]
[367827539,1750937457104,-460.0,0.00019726,2]
[367827540,1750937457113,-460.0,0.00019726,2]
[367827541,1750937457123,-666.66,0.00019726,2]
[367827542,1750937457133,-460.0,0.00019726,2]
[367827543,1750937457142,-460.0,0.00019726,2]
[367827544,1750937457151,-1051.88,0.00019726,2]
[367827545,1750937457161,-584.27,0.00019726,2]
[367827546,1750937457170,-1471.85,0.00019726,2]
[367827547,1750937457179,-1058.47,0.00019726,2]
[367827548,1750937457189,-3674.9,0.00019726,2]
[367827549,1750937457198,-460.0,0.00019726,2]
[367827550,1750937457207,-488.35,0.00019726,2]
[367827551,1750937457216,-460.0,0.00019726,2]
[367827552,1750937457225,-1781.52,0.00019726,2]
[367827553,1750937457234,-765.93,0.00019726,2]
[367827554,1750937457244,-1905.24,0.00019726,2]
[367827555,1750937457254,-1426.6,0.00019726,2]
[367827556,1750937457263,-460.0,0.00019726,2]
[367827557,1750937457273,-845.79,0.00019726,2]
[367827558,1750937457283,-552.93,0.00019726,2]
[367827559,1750937457292,-3344.72,0.00019726,2]
[367827560,1750937457302,-460.0,0.00019726,2]
[367827561,1750937457311,-460.0,0.00019726,2]
[367827562,1750937457320,-460.0,0.00019726,2]
[367827563,1750937457330,-460.0,0.00019726,2]
[367827564,1750937457340,-460.0,0.00019726,2]
[367827565,1750937457349,-725.47,0.00019726,2]
[367827566,1750937457359,-460.0,0.00019726,2]
[367827567,1750937457368,-681.48,0.00019726,2]
[367827568,1750937457377,-1451.19,0.00019726,2]
[367827569,1750937457387,-2357.2,0.00019726,2]
[367827570,1750937457396,-432.68116936,0.00019755,2]
[367827571,1750937457405,-168.0,0.00019771,2]
[367827572,1750937457414,-654.0,0.00019783,2]
[367827573,1750937457424,-2161.0,0.00019783,2]
[367827574,1750937457433,-966.0,0.00019783,2]
[367827575,1750937457443,-448.69037263,0.0001981,2]
[367827576,1750937457452,-2098.61804964,0.00019831,2]
[367827577,1750937457461,-465.29191642,0.00019865,2]
[367827578,1750937457471,-482.50771733,0.0001992,2]
[367827579,1750937457480,-302.574,0.00019957,2]
[367827580,1750937457489,-169.97704006,0.00019969,2]
[367827581,1750937457499,-500.36050287,0.00019975,2]
[367827582,1750937457509,-151.0,0.0002,2]
[367827583,1750937457518,-271.700578,0.0002,2]
[367827584,1750937457527,-271.700578,0.0002,2]
[367827585,1750937457537,-151.385928,0.0002,2]
[367827586,1750937457546,-151.0,0.0002,2]
[367827587,1750937457555,-415.06,0.0002,2]
[367827588,1750937457565,-460.0,0.0002,2]
[367827589,1750937457574,-460.0,0.0002,2]
[367827590,1750937457584,-602.44,0.0002,2]
[367827591,1750937457594,-460.0,0.0002,2]
[367827592,1750937457604,-475.68,0.0002,2]
[367827593,1750937457613,-799.04,0.0002,2]
[367827594,1750937457623,-402.77,0.0002,2]
[367827595,1750937457633,-460.0,0.0002,2]
[367827596,1750937457642,-460.0,0.0002,2]
[367827597,1750937457651,-460.5,0.0002,2]
[367827598,1750937457661,-1001.263524,0.0002,2]
[367827599,1750937457671,-514.6,0.0002,2]
[367827600,1750937457681,-460.0,0.0002,2]
[367827601,1750937457690,-460.0,0.0002,2]
[367827602,1750937457700,-460.0,0.0002,2]
[367827603,1750937457710,-460.0,0.0002,2]
[367827604,1750937457721,-460.0,0.0002,2]
[367827605,1750937457730,-1825.69,0.0002,2]
[367827606,1750937457741,-634.71,0.0002,2]
[367827607,1750937457751,-460.0,0.0002,2]
[367827608,1750937457760,-460.0,0.0002,2]
[367827609,1750937457770,-560.37,0.0002,2]
[367827610,1750937457780,-460.0,0.0002,2]
[367827611,1750937457789,-532.05,0.0002,2]
[367827612,1750937457799,-853.49,0.0002,2]
[367827613,1750937457808,-749.37,0.0002,2]
[367827614,1750937457818,-750.66,0.0002,2]
[367827615,1750937457830,-460.0,0.0002,2]
[367827616,1750937457842,-493.63,0.0002,2]
[367827617,1750937457852,-2230.64,0.0002,2]
[367827618,1750937457863,-1483.5,0.0002,2]
[367827619,1750937457874,-631.3,0.0002,2]
[367827620,1750937457884,-555.27,0.0002,2]
[367827621,1750937457894,-603.69,0.0002,2]
[367827622,1750937457904,-1037.78,0.0002,2]
[367827623,1750937457918,-480.66,0.0002,2]
[367827624,1750937457931,-460.0,0.0002,2]
[367827625,1750937457945,-1376.23,0.0002,2]
[367827626,1750937457959,-460.0,0.0002,2]
[367827627,1750937457970,-1547.65,0.0002,2]
[367827628,1750937457981,-1342.13,0.0002,2]
[367827629,1750937457997,-460.0,0.0002,2]
[367827630,1750937458010,-477.7,0.0002,2]
[367827631,1750937458023,-460.0,0.0002,2]
[367827632,1750937458036,-460.0,0.0002,2]
[367827633,1750937458049,-666.66,0.0002,2]
[367827634,1750937458063,-460.0,0.0002,2]
[367827635,1750937458074,-460.0,0.0002,2]
[367827636,1750937458087,-1051.88,0.0002,2]
[367827637,1750937458100,-584.27,0.0002,2]
[367827638,1750937458114,-1471.85,0.0002,2]
[367827639,1750937458127,-1058.47,0.0002,2]
[367827640,1750937458140,-3674.9,0.0002,2]
[367827641,1750937458153,-460.0,0.0002,2]
[367827642,1750937458165,-488.35,0.0002,2]
[367827643,1750937458176,-460.0,0.0002,2]
[367827644,1750937458190,-1781.52,0.0002,2]
[367827645,1750937458203,-765.93,0.0002,2]
[367827646,1750937458217,-1905.24,0.0002,2]
[367827647,1750937458230,-1426.6,0.0002,2]
[367827648,1750937458241,-460.0,0.0002,2]
[367827649,1750937458251,-845.79,0.0002,2]
[367827650,1750937458263,-552.93,0.0002,2]
[367827651,1750937458274,-3344.72,0.0002,2]
[367827652,1750937458286,-460.0,0.0002,2]
[367827653,1750937458298,-460.0,0.0002,2]
[367827654,1750937458310,-460.0,0.0002,2]
[367827655,1750937458322,-460.0,0.0002,2]
[367827656,1750937458334,-444.72917435,0.0002,2]
[367827657,1750937458346,-725.47,0.0002,2]
[367827658,1750937458359,-460.0,0.0002,2]
[367827659,1750937458372,-681.48,0.0002,2]
[367827660,1750937458385,-1451.19,0.0002,2]
[367827661,1750937458396,-2357.2,0.0002,2]
[367827662,1750937458406,-518.87384147,0.0002003,2]
[367827663,1750937458416,-366.0585355,0.00020082,2]
[367827664,1750937458426,-366.0585355,0.00020082,2]
[367827665,1750937458437,-538.07217361,0.00020085,2]
[367827666,1750937458449,-151.0,0.000201,3]
[367827667,1750937458463,-2098.61804964,0.00020107,2]
[367827668,1750937458476,-2500.0,0.00020137,2]
[367827669,1750937458487,-5000.0,0.00020138,2]
[367827670,1750937458498,-25000.0,0.00020138,2]
[367827671,1750937458509,-173.497975,0.00020187,2]
[367827672,1750937458521,-2504.79287362,0.00020213,2]
[367827673,1750937458533,-460.0,0.00020273,2]
[367827674,1750937458545,-270.30219787,0.00020273,2]
[367827675,1750937458556,-460.0,0.00020273,2]
[367827676,1750937458567,-475.68,0.00020273,2]
[367827677,1750937458578,-799.04,0.00020273,2]
[367827678,1750937458588,-460.0,0.00020273,2]
[367827679,1750937458599,-219.113716,0.00020273,2]
[367827680,1750937458611,-152.46579,0.00020273,2]
[367827681,1750937458623,-460.0,0.00020273,2]
[367827682,1750937458634,-460.5,0.00020273,2]
[367827683,1750937458644,-151.0,0.00020273,2]
[367827684,1750937458655,-151.0,0.00020273,2]
[367827685,1750937458666,-514.6,0.00020273,2]
[367827686,1750937458676,-460.0,0.00020273,2]
[367827687,1750937458687,-460.0,0.00020273,2]
[367827688,1750937458699,-460.0,0.00020273,2]
[367827689,1750937458712,-460.0,0.00020273,2]
[367827690,1750937458723,-473.12,0.00020273,2]
[367827691,1750937458734,-151.0,0.00020273,2]
[367827692,1750937458745,-1825.69,0.00020273,2]
[367827693,1750937458755,-634.71,0.00020273,2]
[367827694,1750937458767,-460.0,0.00020273,2]
[367827695,1750937458778,-460.0,0.00020273,2]
[367827696,1750937458789,-560.37,0.00020273,2]
[367827697,1750937458800,-460.0,0.00020273,2]
[367827698,1750937458810,-532.05,0.00020273,2]
[367827699,1750937458820,-749.37,0.00020273,2]
[367827700,1750937458830,-853.49,0.00020273,2]
[367827701,1750937458840,-750.66,0.00020273,2]
[367827702,1750937458851,-460.0,0.00020273,2]
[367827703,1750937458861,-493.63,0.00020273,2]
[367827704,1750937458872,-2230.64,0.00020273,2]
[367827705,1750937458882,-1483.5,0.00020273,2]
[367827706,1750937458893,-631.3,0.00020273,2]
[367827707,1750937458903,-555.27,0.00020273,2]
[367827708,1750937458914,-603.69,0.00020273,2]
[367827709,1750937458924,-1037.78,0.00020273,2]
[367827710,1750937458935,-480.66,0.00020273,2]
[367827711,1750937458946,-460.0,0.00020273,2]
[367827712,1750937458957,-1376.23,0.00020273,2]
[367827713,1750937458968,-151.0,0.00020273,2]
[367827714,1750937458979,-460.0,0.00020273,2]
[367827715,1750937458990,-1547.65,0.00020273,2]
[367827716,1750937459005,-1342.13,0.00020273,2]
[367827717,1750937459015,-460.0,0.00020273,2]
[367827718,1750937459026,-460.0,0.00020273,2]
[367827719,1750937459037,-460.0,0.00020273,2]
[367827720,1750937459047,-666.66,0.00020273,2]
[367827721,1750937459058,-460.0,0.00020273,2]
[367827722,1750937459071,-460.0,0.00020273,2]
[367827723,1750937459083,-1051.88,0.00020273,2]
[367827724,1750937459094,-584.27,0.00020273,2]
[367827725,1750937459105,-1471.85,0.00020273,2]
[367827726,1750937459116,-1058.47,0.00020273,2]
[367827727,1750937459127,-3674.9,0.00020273,2]
[367827728,1750937459137,-460.0,0.00020273,2]
[367827729,1750937459147,-488.35,0.00020273,2]
[367827730,1750937459158,-240.509382,0.00020273,2]
[367827731,1750937459168,-240.509382,0.00020273,2]
[367827732,1750937459179,-1781.52,0.00020273,2]
[367827733,1750937459189,-765.93,0.00020273,2]
[367827734,1750937459201,-1905.24,0.00020273,2]
[367827735,1750937459211,-1426.6,0.00020273,2]
[367827736,1750937459222,-475.92934072,0.00020273,2]
[367827737,1750937459233,-845.79,0.00020273,2]
[367827738,1750937459243,-552.93,0.00020273,2]
[367827739,1750937459254,-3344.72,0.00020273,2]
[367827740,1750937459264,-460.0,0.00020273,2]
[367827741,1750937459275,-460.0,0.00020273,2]
[367827742,1750937459286,-481.52350909,0.00020273,2]
[367827743,1750937459297,-460.0,0.00020273,2]
[367827744,1750937459308,-725.47,0.00020273,2]
[367827745,1750937459318,-460.0,0.00020273,2]
[367827746,1750937459329,-681.48,0.00020273,2]
[367827747,1750937459340,-1451.19,0.00020273,2]
[367827748,1750937459351,-2357.2,0.00020273,2]
[367827749,1750937459361,-151.0,0.00020314,2]
[367827750,1750937459372,-250.0,0.00020375,2]
[367827751,1750937459382,-2098.61804964,0.00020383,3]
[367827752,1750937459393,-168.0,0.00020481,2]
[367827753,1750937459403,-151.0,0.000205,4]
[367827754,1750937459414,-1000.0,0.000205,2]
[367827755,1750937459424,-460.0,0.00020547,2]
[367827756,1750937459436,-460.0,0.00020547,2]
[367827757,1750937459446,-475.68,0.00020547,2]
[367827758,1750937459457,-151.0,0.00020547,2]
[367827759,1750937459468,-799.04,0.00020547,2]
[367827760,1750937459479,-151.0,0.00020547,2]
[367827761,1750937459490,-460.0,0.00020547,2]
[367827762,1750937459502,-460.5,0.00020547,2]
[367827763,1750937459512,-514.6,0.00020547,2]
[367827764,1750937459523,-460.0,0.00020547,2]
[367827765,1750937459534,-460.0,0.00020547,2]
[367827766,1750937459545,-460.0,0.00020547,2]
[367827767,1750937459557,-460.0,0.00020547,2]
[367827768,1750937459569,-1825.69,0.00020547,2]
[367827769,1750937459579,-151.0,0.00020547,2]
[367827770,1750937459590,-634.71,0.00020547,2]
[367827771,1750937459601,-460.0,0.00020547,2]
[367827772,1750937459611,-460.0,0.00020547,2]
[367827773,1750937459623,-560.37,0.00020547,2]
[367827774,1750937459634,-460.0,0.00020547,2]
[367827775,1750937459644,-532.05,0.00020547,2]
[367827776,1750937459656,-749.37,0.00020547,2]
[367827777,1750937459666,-853.49,0.00020547,2]
[367827778,1750937459679,-750.66,0.00020547,2]
[367827779,1750937459691,-460.0,0.00020547,2]
[367827780,1750937459702,-493.63,0.00020547,2]
[367827781,1750937459715,-2230.64,0.00020547,2]
[367827782,1750937459728,-1483.5,0.00020547,2]
[367827783,1750937459740,-631.3,0.00020547,2]
[367827784,1750937459752,-555.27,0.00020547,2]
[367827785,1750937459764,-603.69,0.00020547,2]
[367827786,1750937459775,-1037.78,0.00020547,2]
[367827787,1750937459786,-480.66,0.00020547,2]
[367827788,1750937459796,-460.0,0.00020547,2]
[367827789,1750937459807,-1376.23,0.00020547,2]
[367827790,1750937459818,-460.0,0.00020547,2]
[367827791,1750937459828,-1547.65,0.00020547,2]
[367827792,1750937459839,-1342.13,0.00020547,2]
[367827793,1750937459849,-460.0,0.00020547,2]
[367827794,1750937459860,-460.0,0.00020547,2]
[367827795,1750937459871,-460.0,0.00020547,2]
[367827796,1750937459882,-666.66,0.00020547,2]
[367827797,1750937459893,-460.0,0.00020547,2]
[367827798,1750937459903,-460.0,0.00020547,2]
[367827799,1750937459914,-1051.88,0.00020547,2]
[367827800,1750937460125,-1471.85,0.00020547,2]
[367827801,1750937460145,-584.27,0.00020547,2]
[367827802,1750937460156,-1058.47,0.00020547,2]
[367827803,1750937460167,-3674.9,0.00020547,2]
[367827804,1750937460176,-460.0,0.00020547,2]
[367827805,1750937460186,-488.35,0.00020547,2]
[367827806,1750937460195,-1781.52,0.00020547,2]
[367827807,1750937460206,-765.93,0.00020547,2]
[367827808,1750937460216,-1905.24,0.00020547,2]
[367827809,1750937460229,-1426.6,0.00020547,2]
[367827810,1750937460239,-845.79,0.00020547,2]
[367827811,1750937460249,-552.93,0.00020547,2]
[367827812,1750937460257,-3344.72,0.00020547,2]
[367827813,1750937460266,-460.0,0.00020547,2]
[367827814,1750937460275,-460.0,0.00020547,2]
[367827815,1750937460285,-460.0,0.00020547,2]
[367827816,1750937460294,-725.47,0.00020547,2]
[367827817,1750937460304,-460.0,0.00020547,2]
[367827818,1750937460315,-681.48,0.00020547,2]
[367827819,1750937460324,-1451.19,0.00020547,2]
[367827820,1750937460333,-2357.2,0.00020547,2]
[367827821,1750937460343,-1367.295302,0.0002058,4]
[367827822,1750937460353,-3385.13,0.000206,2]
[367827823,1750937460363,-2098.61804964,0.00020659,3]
[367827824,1750937460372,-200.0,0.0002067,2]
[367827825,1750937460382,-1057.77139467,0.00020684,2]
[367827826,1750937460391,-5000.0,0.00020686,2]
[367827827,1750937460401,-168.0,0.00020746,2]
[367827828,1750937460410,-324.70928451,0.00020821,2]
[367827829,1750937460419,-460.0,0.00020821,2]
[367827830,1750937460428,-151.0,0.00020821,2]
[367827831,1750937460438,-151.0,0.00020821,2]
[367827832,1750937460447,-460.0,0.00020821,2]
[367827833,1750937460456,-475.68,0.00020821,2]
[367827834,1750937460466,-799.04,0.00020821,2]
[367827835,1750937460476,-460.5,0.00020821,2]
[367827836,1750937460486,-279.39,0.00020821,2]
[367827837,1750937460496,-514.6,0.00020821,2]
[367827838,1750937460506,-460.0,0.00020821,2]
[367827839,1750937460516,-460.0,0.00020821,2]
[367827840,1750937460525,-460.0,0.00020821,2]
[367827841,1750937460535,-460.0,0.00020821,2]
[367827842,1750937460545,-1825.69,0.00020821,2]
[367827843,1750937460554,-634.71,0.00020821,2]
[367827844,1750937460565,-460.0,0.00020821,2]
[367827845,1750937460574,-460.0,0.00020821,2]
[367827846,1750937460584,-560.37,0.00020821,2]
[367827847,1750937460594,-460.0,0.00020821,2]
[367827848,1750937460603,-532.05,0.00020821,2]
[367827849,1750937460612,-749.37,0.00020821,2]
[367827850,1750937460621,-853.49,0.00020821,2]
[367827851,1750937460631,-750.66,0.00020821,2]
[367827852,1750937460640,-460.0,0.00020821,2]
[367827853,1750937460650,-493.63,0.00020821,2]
[367827854,1750937460659,-2230.64,0.00020821,2]
[367827855,1750937460669,-1483.5,0.00020821,2]
[367827856,1750937460679,-631.3,0.00020821,2]
[367827857,1750937460689,-555.27,0.00020821,2]
[367827858,1750937460699,-603.69,0.00020821,2]
[367827859,1750937460708,-1037.78,0.00020821,2]
[367827860,1750937460717,-480.66,0.00020821,2]
[367827861,1750937460726,-460.0,0.00020821,2]
[367827862,1750937460736,-1376.23,0.00020821,2]
[367827863,1750937460746,-460.0,0.00020821,2]
[367827864,1750937460755,-1547.65,0.00020821,2]
[367827865,1750937460764,-1342.13,0.00020821,2]
[367827866,1750937460774,-460.0,0.00020821,2]
[367827867,1750937460783,-460.0,0.00020821,2]
[367827868,1750937460793,-666.66,0.00020821,2]
[367827869,1750937460802,-460.0,0.00020821,2]
[367827870,1750937460812,-460.0,0.00020821,2]
[367827871,1750937460821,-1051.88,0.00020821,2]
[367827872,1750937460830,-1471.85,0.00020821,2]
[367827873,1750937460840,-584.27,0.00020821,2]
[367827874,1750937460849,-1058.47,0.00020821,2]
[367827875,1750937460859,-3674.9,0.00020821,2]
[367827876,1750937460869,-460.0,0.00020821,2]
[367827877,1750937460878,-488.35,0.00020821,2]
[367827878,1750937460887,-1781.52,0.00020821,2]
[367827879,1750937460896,-765.93,0.00020821,2]
[367827880,1750937460906,-1905.24,0.00020821,2]
[367827881,1750937460915,-1426.6,0.00020821,2]
[367827882,1750937460925,-845.79,0.00020821,2]
[367827883,1750937460934,-552.93,0.00020821,2]
[367827884,1750937460944,-3344.72,0.00020821,2]
[367827885,1750937460953,-460.0,0.00020821,2]
[367827886,1750937460963,-460.0,0.00020821,2]
[367827887,1750937460973,-460.0,0.00020821,2]
[367827888,1750937460982,-725.47,0.00020821,2]
[367827889,1750937460992,-460.0,0.00020821,2]
[367827890,1750937461006,-681.48,0.00020821,2]
[367827891,1750937461015,-1451.19,0.00020821,2]
[367827892,1750937461023,-214.33134213,0.00020822,3]
[367827893,1750937461032,-505.0,0.00020886,2]
[367827894,1750937461042,-2098.61804964,0.00020934,4]
[367827895,1750937461051,-168.0,0.0002094,2]
[367827896,1750937461061,-215.0738,0.00020959,2]
[367827897,1750937461071,-151.0,0.00020999,2]
[367827898,1750937461080,-151.0,0.00020999,2]
[367827899,1750937461090,-226.920011,0.00020999,2]
[367827900,1750937461099,-226.920011,0.00020999,2]
[367827901,1750937461108,-151.0,0.00020999,2]
[367827902,1750937461117,-122907.93618458,0.00021,2]
[367827903,1750937461234,-11657.4911196,0.00021,2]
[367827904,1750937461246,-728.1996,0.00021,2]
[367827905,1750937461257,-545.89180486,0.00021,2]
[367827906,1750937461268,-3632.79933262,0.00021,2]
[367827907,1750937461279,-1843.21670534,0.00021,2]